[Event "79th LOTTO Polish-ch 2022"]
[Site "Kruszwica"]
[Date "2022.05.12"]
[Round "2.3"]
[White "Szpar, Milosz"]
[Black "Janik, Igor"]
[Result "1-0"]
[ECO "C72"]
[WhiteElo "2434"]
[BlackElo "2525"]
[Annotator "TA"]
[PlyCount "87"]
[EventDate "2022.05.10"]
[EventType "k.o."]
[EventCountry "POL"]
[SourceTitle "playchess.com"]
[Source "ChessBase"]
[SourceQuality "1"]
[TimeControl "40/5400+30:1800+30"]

{[%evp 14,87,31,30,32,25,44,41,27,0,0,0,0,0,0,10,0,0,15,0,25,0,81,76,75,49,55,18,50,42,29,0,91,86,94,94,102,88,154,135,264,135,243,97,170,109,109,109,242,286,508,507,610,545,889,882,1456,803,1065,1070,1197,1195,1186,998,29985,29984,29988,29989,29989,29990,29990,29990,29994,592,29995,29996]} 1. e4 {[%emt 1:15:42]} e5 {[%emt 1:15:40]} 2. Nf3 {[%emt 0:00:22]} Nc6 {[%emt 0:00:21]} 3. Bb5 {[%emt 0:00:23]} a6 {[%emt 0:00:31]} 4. Ba4 {[%emt 0:00:23]} d6 {[%emt 0:00:21]} 5. O-O {[%emt 0:00:41]} Bd7 {[%emt 0:00:29]} 6. c3 {[%emt 0:00:35]} g6 {[%emt 0:00:22]} 7. d4 {[%emt 0:00:31]} Bg7 {[%emt 0:00:20]} 8. Re1 {[%emt 0:01:19]} b5 {[%emt 0:00:23] 8...Nf6 gains popularity. C76: Ruy Lopez: Deferred Steinitz: 5 c3 Bd7 6 d4 g6.} 9. Bc2 {[%emt 0:01:09]} exd4 {[%emt 0:00:29]} 10. cxd4 {[%emt 0:00:41]} Bg4 {[%emt 0:00:21] White is slightly better.} 11. Be3 {[%emt 0:01:11] [#]} (11. d5 $5 {[%cal Rd5c6]} Bxf3 12. Qxf3 $14 (12. gxf3 Nd4 $14)) 11... Bxf3 $146 {[%emt 0:00:42]} ({Predecessor:} 11... Nge7 12. Nc3 O-O 13. Ne2 Qd7 14. Qd2 Bxf3 15. gxf3 d5 16. Kg2 dxe4 17. fxe4 f5 {0-1 (43) Vallejo Pons,F (2704)-Safarli,E (2601) Moscow 2019}) 12. gxf3 {[%emt 0:01:15]} Nge7 {[%emt 0:00:21]} 13. Nc3 {[%emt 0:00:46][%cal Bb1c3,Bc3e2,Be2g3][%mdl 32]} O-O {[%emt 0:00:23]} 14. f4 d5 {[%emt 0:01:10]} 15. e5 {[%emt 0:01:58]} Qd7 $1 {[%emt 0:02:25]} 16. Ne2 {[%emt 0:00:39]} Nd8 {[%emt 0:05:13]} 17. Kh1 {[%emt 0:00:36]} f5 {[%emt 0:00:43]} (17... f6 $11) 18. Rc1 {[%emt 0:02:59]} Ne6 {[%emt 0:00:21]} 19. Bb3 {[%emt 0:01:10]} Rfd8 {[%emt 0:01:15]} 20. Ng3 {[%emt 0:02:20]} Bh6 {[%emt 0:01:43]} 21. Qf3 {[%emt 0:00:27]} a5 {[%emt 0:00:30]} 22. a3 {[%emt 0:00:49][%cal Ba2a3,Ba3a4][%mdl 32]} b4 {[%emt 0:01:21] [#]} (22... a4 $11 {remains equal.} 23. Bc2 c5) 23. a4 $1 $16 {[%emt 0:00:32] White is more active.} Kh8 {[%emt 0:00:34]} 24. Ne2 {[%emt 0:00:40]} Nc8 {[%emt 0:00:47]} 25. Bc2 {[%emt 0:01:00]} Nb6 {[%emt 0:00:45]} (25... Rg8 $142) 26. b3 {[%emt 0:00:21]} Rac8 {[%emt 0:00:42]} (26... Qf7 $16) 27. Bd3 {[%emt 0:00:28]} ({White should try} 27. Rg1 $18) 27... c6 {[%emt 0:00:21]} (27... Bf8 $16) 28. Rc2 {[%emt 0:00:37]} (28. Qh3 $18) 28... Rc7 {[%emt 0:00:56]} (28... Bf8 $16) 29. Rec1 {[%emt 0:00:40]} (29. Qh3 $18 Bg7 30. Rg1) 29... Bf8 {[%emt 0:00:43]} 30. h4 {[%emt 0:00:39][%cal Bh2h4,Bh4h5,Bh5h6][%mdl 32] h5 is the strong threat.} Rdc8 {[%emt 0:01:50] Black cannot hold the game after this.} (30... Ng7 $16 {is a better defense.}) 31. h5 $18 {[%emt 0:00:50]} Qe8 $2 {[%emt 0:00:45]} (31... c5 {keeps fighting.}) 32. Qh3 {[%emt 0:00:35] Black must now prevent hxg6.} Ng7 {[%emt 0:01:58]} 33. Ng3 {[%emt 0:01:24]} Kg8 {[%emt 0:00:34]} 34. Rg1 {[%emt 0:00:45]} Kf7 {[%emt 0:00:37]} 35. h6 {[%emt 0:00:46]} Ne6 {[%emt 0:00:26] [#]} 36. Nxf5 $1 {[%emt 0:00:56][%mdl 512]} c5 {[%emt 0:01:08]} (36... Kg8 37. Nh4) 37. Nd6+ {[%emt 0:01:15]} Bxd6 {[%emt 0:00:23]} 38. exd6 {[%emt 0:00:21] And now f5 would win.} cxd4 {[%emt 0:01:16]} 39. f5 {[%emt 0:01:03]} Nf8 {[%emt 0:00:35]} 40. fxg6+ {[%emt 0:00:33]} Nxg6 {[%emt 0:00:24]} 41. Rxc7+ {[%emt 0:30:29]} Rxc7 {[%emt 0:30:23]} 42. Bxd4 {[%emt 0:00:40] This bishop pair is nice.} Rc6 {[%emt 0:00:36]} 43. Qf5+ {[%emt 0:00:34]} Kg8 {[%emt 0:00:21]} 44. Qf6 {[%emt 0:00:21] Weighted Error Value: White=0.31/Black=0.62} 1-0

[Event "79th LOTTO Polish-ch 2022"]
[Site "Kruszwica"]
[Date "2022.05.12"]
[Round "2.4"]
[White "Socko, Bartosz"]
[Black "Tomczak, Jacek"]
[Result "1-0"]
[ECO "A40"]
[WhiteElo "2636"]
[BlackElo "2584"]
[Annotator "TA"]
[PlyCount "142"]
[EventDate "2022.05.10"]
[EventType "k.o."]
[EventCountry "POL"]
[SourceTitle "playchess.com"]
[Source "ChessBase"]
[SourceQuality "1"]
[TimeControl "40/5400+30:1800+30"]

{[%evp 23,142,19,22,0,45,33,22,29,61,37,75,72,66,66,68,77,70,22,26,0,0,-52,-53,-72,0,0,0,0,0,0,0,0,-10,-35,-60,-49,-30,-30,0,0,0,0,0,0,5,6,6,6,8,6,10,10,12,0,0,0,0,0,0,0,0,0,0,0,0,0,0,0,0,0,0,0,0,0,8,3,8,12,623,616,532,525,583,485,296,52,81,92,218,62,1360,850,29966,29964,29966,29967,29968,29969,29969,29970,29971,29971,29977,29971,29977,29973,29973,29974,29974,29975,29976,29975,29975,29975,29981,29982,29985,29986,29990,29991,29992]} 1. d4 {[%emt 1:15:42]} Nf6 {[%emt 1:15:42]} 2. c4 {[%emt 0:00:21]} e6 {[%emt 0:00:22]} 3. g3 {[%emt 0:00:25]} c5 {[%emt 0:00:22]} 4. Nf3 {[%emt 0:00:35]} cxd4 {[%emt 0:00:22]} 5. Nxd4 {[%emt 0:00:23]} d5 {[%emt 0:00:22]} 6. Bg2 {[%emt 0:00:23]} e5 {[%emt 0:00:23]} 7. Nf3 {[%emt 0:00:53]} d4 {[%emt 0:00:23]} 8. O-O {[%emt 0:00:23]} Nc6 {[%emt 0:00:22]} 9. e3 {[%emt 0:00:22]} Be7 {[%emt 0:00:32]} 10. exd4 {[%emt 0:00:22]} exd4 {[%emt 0:00:22]} 11. Bf4 {[%emt 0:00:37]} O-O {[%emt 0:00:31]} 12. Ne5 {[%emt 0:00:32]} Qb6 {[%emt 0:02:39]} 13. Qb3 {[%emt 0:01:42] 13.Re1 is more advanced technology. E01: Catalan: Early deviations.} (13. Re1 $5 {[%cal Re5c6]} Nxe5 14. Bxe5 $11) 13... Nxe5 {[%emt 0:02:26]} 14. Qxb6 {[%emt 0:00:47]} axb6 {[%emt 0:00:22]} 15. Bxe5 {[%emt 0:00:22] The position is equal.} d3 {[%emt 0:01:15] [#]} 16. Rd1 $146 {[%emt 0:01:01]} ({Predecessor:} 16. Nc3 Be6 17. b3 Nd7 18. Bd4 Bc5 19. Bxc5 Nxc5 20. Nd5 Bxd5 21. Bxd5 Rfe8 22. b4 {½-½ (40) Griego,D (2462)-Henry,R (2340) Newport 1989}) 16... Nd7 {[%emt 0:01:48]} 17. Bd4 {[%emt 0:01:02]} Rd8 {[%emt 0:01:54]} 18. Nc3 {[%emt 0:00:36] aiming for Nd5.} Bc5 $1 {[%emt 0:00:42]} 19. Bxc5 {[%emt 0:01:00]} ({Much worse is} 19. Rxd3 $6 Ne5 20. Bxc5 Rxd3 $11) 19... Nxc5 {[%emt 0:00:22]} 20. b4 {[%emt 0:01:03]} (20. Bd5 $14) 20... Na4 $1 $11 {[%emt 0:01:10]} 21. Nxa4 {[%emt 0:02:24]} Rxa4 {[%emt 0:00:22]} 22. a3 {[%emt 0:00:22]} ({White should try} 22. Bd5 $11) 22... Rd4 $1 $15 {[%emt 0:02:02]} 23. Re1 {[%emt 0:02:19][%cal Re1e8] [#]} Be6 {[%emt 0:01:33]} (23... Kf8 $1 $17 {...b5 is the strong threat.} 24. Re4 Rd8) 24. Bd5 $1 $11 {[%emt 0:02:29]} d2 {[%emt 0:01:53]} 25. Red1 {[%emt 0:00:21]} Bxd5 {[%emt 0:00:21]} 26. cxd5 {[%emt 0:00:22]} Rxd5 {[%emt 0:00:22][%mdl 4096] Endgame KRR-KRR} 27. Ra2 {[%emt 0:00:21]} Kf8 {[%emt 0:01:08]} 28. Raxd2 {[%emt 0:00:21]} Rxd2 {[%emt 0:00:22]} 29. Rxd2 {[%emt 0:00:21]} Rxa3 {[%emt 0:00:21] KR-KR} 30. Rd6 {[%emt 0:00:22]} Rc3 {[%emt 0:00:34]} 31. Rxb6 {[%emt 0:00:23]} Rc7 {[%emt 0:00:22]} 32. Kg2 {[%emt 0:00:37]} Ke7 {[%emt 0:00:24]} 33. h4 {[%emt 0:00:29]} Rd7 {[%emt 0:00:48]} 34. h5 {[%emt 0:00:24]} h6 {[%emt 0:00:21]} 35. Kf3 {[%emt 0:00:34]} Kd8 {[%emt 0:00:24]} 36. Ke4 {[%emt 0:00:26]} Kc7 {[%emt 0:00:23]} 37. Rb5 {[%emt 0:00:21]} Rd2 $1 {[%emt 0:00:53]} 38. f3 {[%emt 0:00:21]} Rb2 {[%emt 0:00:47]} 39. Kd4 {[%emt 0:02:16]} Kc6 {[%emt 0:01:13]} 40. Rc5+ {[%emt 0:00:30]} Kd6 {[%emt 0:00:22]} 41. Rd5+ {[%emt 0:34:07]} Kc6 {[%emt 0:30:27] Threatens to win with ...Rd2+.} 42. Rc5+ {[%emt 0:00:30]} Kd6 {[%emt 0:00:22]} 43. Kc3 {[%emt 0:00:22]} Rg2 {[%emt 0:01:05]} 44. g4 {[%emt 0:00:24]} g6 {[%emt 0:00:21]} 45. Kd4 {[%emt 0:00:28]} Rb2 {[%emt 0:00:45]} 46. Rd5+ {[%emt 0:00:55]} Kc7 $1 {[%emt 0:01:10]} 47. Kc5 {[%emt 0:01:17]} Rc2+ {[%emt 0:00:42]} 48. Kb5 {[%emt 0:00:22]} Rf2 {[%emt 0:00:28]} 49. Rd3 {[%emt 0:00:26]} gxh5 {[%emt 0:00:43]} 50. gxh5 {[%emt 0:00:21]} b6 $2 {[%emt 0:00:55][%mdl 8192]} (50... Rc2 $11) 51. Rc3+ $18 {[%emt 0:00:24]} Kb7 {[%emt 0:00:21]} 52. Re3 {[%emt 0:00:23]} f5 {[%emt 0:00:39]} 53. Re7+ {[%emt 0:00:30]} Kc8 {[%emt 0:00:21]} 54. Kxb6 $2 {[%emt 0:00:31]} ({White must play} 54. Kc6 $18 {[%cal Re7e8]} Kd8 55. Rd7+ Ke8 56. Rd3) 54... Rxf3 $14 {[%emt 0:00:22]} 55. Rh7 {[%emt 0:00:37] White stays focused until the end.} Rh3 {[%emt 0:00:25] [#]} (55... Kd8 $16 {was necessary.}) 56. Rxh6 $2 {[%emt 0:00:35]} (56. Kc6 $1 $18 {[%cal Rh7h8]} Rc3+ 57. Kd5) 56... f4 $2 {[%emt 0:00:21][%mdl 8192]} (56... Kd7 $14) 57. b5 {[%emt 0:00:43][%cal Bb4b5,Bb5b6,Bb6b7][%mdl 32] Threatening mate with Rf6.} f3 {[%emt 0:00:35]} 58. Rf6 {[%emt 0:00:40] White mates.} Kd7 {[%emt 0:00:58]} 59. Ka6 {[%emt 0:00:51]} Rxh5 {[%emt 0:01:26]} 60. Rxf3 {[%emt 0:00:23]} Rh1 {[%emt 0:00:21]} 61. b6 {[%emt 0:00:39]} Rb1 {[%emt 0:00:32]} 62. Kb7 {[%emt 0:00:29]} Rd1 {[%emt 0:00:23]} 63. Rc3 {[%emt 0:00:23]} Rd2 {[%emt 0:00:25]} 64. Kb8 {[%emt 0:00:24]} Rb2 {[%emt 0:00:33]} 65. b7 {[%emt 0:00:23]} Ra2 {[%emt 0:00:31]} 66. Rd3+ {[%emt 0:00:27]} Ke6 {[%emt 0:00:22]} 67. Rd8 {[%emt 0:00:28]} Ra1 {[%emt 0:00:29]} 68. Rd4 {[%emt 0:00:26]} Ke5 {[%emt 0:00:30]} 69. Rb4 {[%emt 0:00:55]} Ke6 {[%emt 0:00:52]} 70. Kc7 {[%emt 0:00:23]} Rc1+ {[%emt 0:00:21]} 71. Kb6 {[%emt 0:00:22]} Kd5 {Weighted Error Value: White=0.23 (precise) /Black=0.38} 1-0

[Event "79th LOTTO Polish-ch 2022"]
[Site "Kruszwica"]
[Date "2022.05.12"]
[Round "2.4"]
[White "Teclaf, Pawel"]
[Black "Piorun, Kacper"]
[Result "1/2-1/2"]
[ECO "C07"]
[WhiteElo "2537"]
[BlackElo "2635"]
[Annotator "TA"]
[PlyCount "115"]
[EventDate "2022.05.10"]
[EventType "k.o."]
[EventCountry "POL"]
[SourceTitle "playchess.com"]
[Source "ChessBase"]
[SourceQuality "1"]
[TimeControl "40/5400+30:1800+30"]

{[%evp 14,115,11,0,11,12,16,0,0,0,10,0,0,0,0,0,0,0,0,0,0,0,0,7,7,-24,-12,-20,0,0,35,0,0,0,64,63,52,52,82,77,100,104,172,106,117,125,106,119,134,77,82,83,75,8,81,12,99,89,89,64,74,63,62,47,53,41,41,0,41,41,42,42,47,0,53,33,42,0,0,-103,49,39,208,0,0,0,60,60,60,60,62,58,57,37,37,37,37,39,54,48,51,0,55,43]} 1. e4 {[%emt 1:15:42]} e6 {[%emt 1:16:11]} 2. d4 {[%emt 0:00:22]} d5 {[%emt 0:00:21]} 3. Nd2 {[%emt 0:00:21]} c5 {[%emt 0:00:21]} 4. Ngf3 {[%emt 0:00:21]} cxd4 {[%emt 0:00:21]} 5. Nxd4 {[%emt 0:00:22]} Nc6 {[%emt 0:00:21]} 6. Bb5 {[%emt 0:00:21]} Bd7 {[%emt 0:00:21]} 7. Nxc6 {[%emt 0:00:22]} bxc6 {[%emt 0:00:21]} 8. Bd3 {[%emt 0:00:21]} Bd6 {[%emt 0:00:21] C07: French Tarrasch: 3...c5, 4 Ngf3 and 4 exd5 Qxd5.} 9. Qe2 {[%emt 0:00:21]} e5 $1 {[%emt 0:00:21][%mdl 4] is currently scoring better than 9...Ne7.} 10. c4 {[%emt 0:00:21]} d4 {[%emt 0:00:21] The position is equal.} 11. c5 {[%emt 0:00:21]} Bxc5 {[%emt 0:00:22]} 12. O-O {[%emt 0:00:22]} Ne7 {[%emt 0:01:56][%cal Bg8e7,Be7g6,Bg6f4][%mdl 32]} 13. Qh5 {[%emt 0:00:27]} Ng6 {[%emt 0:03:23]} 14. f4 $1 {[%emt 0:00:21]} Qe7 $1 {[%emt 0:00:34] [#]} 15. Nb3 $146 {[%emt 0:00:21]} (15. Nc4 exf4 16. e5 Be6 17. Bxf4 Nxf4 18. Rxf4 g6 $15) ({Predecessor:} 15. g3 O-O-O 16. Nc4 f6 17. Bd2 exf4 18. gxf4 Bb4 19. Rf3 Bxd2 20. Nxd2 Kb8 21. Qa5 {1-0 (55) Talukdar,R (2321)-Thavandiran,S (2420) Kingston 2022}) 15... Bd6 {[%emt 0:00:51][%cal Re5f4]} 16. f5 {[%emt 0:00:22]} Nf4 {[%emt 0:00:56]} (16... Qh4 $2 17. Qxh4 Nxh4 18. g3 $18) 17. Bxf4 {[%emt 0:00:22]} exf4 {[%emt 0:00:22]} 18. e5 {[%emt 0:00:21]} Bxe5 {[%emt 0:00:31]} 19. Rfe1 {[%emt 0:00:21]} Kd8 {[%emt 0:02:21]} 20. Rac1 {[%emt 0:00:25]} Rb8 {[%emt 0:01:53]} 21. Na5 {[%emt 0:04:23]} Rb6 {[%emt 0:01:13]} 22. Qf3 {[%emt 0:02:10]} Re8 $1 {[%emt 0:03:04]} 23. Nc4 $36 {[%emt 0:03:27][%mdl 2048] White fights for an advantage.} f6 {[%emt 0:00:22]} 24. Nxb6 $14 {[%emt 0:00:24] White is more active.} axb6 {[%emt 0:00:21] [#]} 25. Bb5 $1 {[%emt 0:01:04]} d3 $1 {[%emt 0:03:29]} 26. Bxd3 {[%emt 0:03:24]} ({Don't go for} 26. Qf2 $2 Qb4 27. Rxe5 (27. Bxd3 $2 Bd4 $19) (27. Qxb6+ $2 Ke7 $19) 27... Rxe5 28. Bxd3 Kc7 $19) 26... Qb4 {[%emt 0:00:31]} 27. Kh1 {[%emt 0:01:59]} Qxb2 {[%emt 0:01:11]} (27... Kc7 $16) 28. Be4 {[%emt 0:02:17]} (28. Red1 $18 Kc7 29. Be2) 28... c5 $16 {[%emt 0:01:04]} 29. Rcd1 {[%emt 0:01:04]} Bd4 {[%emt 0:00:45]} 30. Qxf4 {[%emt 0:00:44] White threatens Qb8+ and mate.} Re5 {[%emt 0:00:34]} 31. Bf3 {[%emt 0:01:11]} (31. Qg3 $142) 31... Qxa2 {[%emt 0:00:42]} 32. Rxe5 {[%emt 0:00:48]} Bxe5 {[%emt 0:00:20] This bishop pair is nice.} 33. Qh4 {[%emt 0:00:50]} (33. Qe4 $16 {Threatens to win with Qb7.} Ke7 34. Qb7) 33... h6 {[%emt 0:00:39] [#]} (33... Kc7 $11 {remains equal.}) 34. Qg4 {[%emt 0:00:38]} ({Better is} 34. Qe4 $1 $16 {[%cal Re4b7] Black must now prevent Qb7.} Ke7 35. Bh5) 34... Qf7 {[%emt 0:00:32]} (34... Kc7 $1 $11) 35. Qa4 {[%emt 0:00:42][%mdl 1024] White has strong compensation.} Bd4 {[%emt 0:00:21]} 36. Qa8+ {[%emt 0:00:29]} Bc8 {[%emt 0:00:30]} 37. Re1 {[%emt 0:00:29] Re6 is the strong threat.} Be5 $1 {[%emt 0:00:24]} 38. Qc6 {[%emt 0:00:25]} Qc7 {[%emt 0:00:32] And now ...Qxc6 would win.} 39. Qd5+ {[%emt 0:00:39]} Qd7 {[%emt 0:00:24]} 40. Qb3 {[%emt 0:00:30] aiming for Rd1.} Kc7 {[%emt 0:00:31]} 41. Qa2 {[%emt 0:30:29]} Kd8 {[%emt 0:30:27]} 42. Qg8+ {[%emt 0:00:28]} Kc7 {[%emt 0:00:21]} 43. Qa2 {[%emt 0:00:22]} Kd8 {[%emt 0:00:21]} 44. Rb1 {[%emt 0:00:40]} b5 {[%emt 0:01:06]} 45. Qg8+ {[%emt 0:00:32]} Kc7 {[%emt 0:00:23]} 46. Qa2 {[%emt 0:00:21]} (46. Rd1 $11 Bd4 47. Re1) 46... Kd8 $2 {[%emt 0:00:41]} (46... Kb6 $17 47. Qa8 h5) 47. Qa5+ {[%emt 0:00:31]} Bc7 $2 {[%emt 0:00:21] [#]} (47... Ke7 $14) 48. Qc3 $2 {[%emt 0:00:25]} ({Weaker is} 48. Qxb5 Qxb5 49. Rxb5 Bxf5 $14) (48. Qa7 $1 $18 Bd6 49. Qb6+ Qc7 50. Qxb5 (50. Rxb5 Bd7 $14) 50... Bxf5 51. Re1) 48... Qxf5 $11 {[%emt 0:00:33]} 49. Rxb5 {[%emt 0:00:35]} Qe5 {[%emt 0:00:32]} ({Black should try} 49... Bd6 $1 $11) 50. Qxe5 $14 {[%emt 0:00:35][%mdl 64] Remove Defender. Dancing on a razor blade.} Bxe5 {[%emt 0:00:21]} 51. Rxc5 {[%emt 0:00:21][%mdl 4096] Endgame KRB-KB} Be6 {[%emt 0:00:24]} 52. Rc1 {[%emt 0:00:26]} Ke7 {[%emt 0:00:22]} 53. Rb1 {[%emt 0:00:23]} f5 {[%emt 0:00:39]} 54. Rb7+ {[%emt 0:00:22]} Kf6 {[%emt 0:00:21]} 55. Rb6 {[%emt 0:00:21] Hoping for Bd5.} Kf7 {[%emt 0:00:21]} 56. Bh5+ {[%emt 0:00:23]} Ke7 {[%emt 0:00:21]} 57. Bf3 {[%emt 0:00:22]} Kf7 {[%emt 0:00:21]} 58. Rb5 {[%emt 0:00:28] Weighted Error Value: White=0.22 (precise) /Black=0.24 (precise)} 1/2-1/2

[Event "79th LOTTO Polish-ch 2022"]
[Site "Kruszwica"]
[Date "2022.05.12"]
[Round "2.4"]
[White "Janik, Igor"]
[Black "Szpar, Milosz"]
[Result "1/2-1/2"]
[ECO "B23"]
[WhiteElo "2525"]
[BlackElo "2434"]
[Annotator "TA"]
[PlyCount "103"]
[EventDate "2022.05.10"]
[EventType "k.o."]
[EventCountry "POL"]
[SourceTitle "playchess.com"]
[Source "ChessBase"]
[SourceQuality "1"]
[TimeControl "40/5400+30:1800+30"]

{[%evp 9,103,0,0,0,0,0,0,0,7,19,23,5,46,14,7,0,10,0,10,0,4,0,0,-62,-65,-79,-70,-87,94,87,110,102,107,-21,-27,-50,-58,-153,54,50,126,-27,10,13,35,0,48,58,65,-47,-48,-67,-65,-149,-133,-461,-460,-451,-433,-531,-489,-520,-509,-521,-529,-577,-404,-805,-759,-1290,-1290,-1288,-994,-2666,-2617,-1692,-1969,-29984,-1255,-29973,-29973,-29971,-29974,-29973,-29975,-29974,-29975,-29996,-29983,-29983,-29984,-29996,0,-1984,0,-29996]} 1. e4 {[%emt 1:15:41]} c5 {[%emt 1:15:57]} 2. Nc3 {[%emt 0:00:21]} d6 {[%emt 0:00:26]} 3. d4 {[%emt 0:00:21]} cxd4 {[%emt 0:00:31]} 4. Qxd4 {[%emt 0:00:21]} Nc6 {[%emt 0:00:44]} 5. Qd2 {[%emt 0:00:21]} g6 {[%emt 0:00:28]} 6. b3 {[%emt 0:00:21] B23: Closed Sicilian: Lines without g3.} Bh6 {[%emt 0:00:30]} 7. f4 {[%emt 0:00:22]} Nf6 {[%emt 0:01:16]} 8. Bb2 {[%emt 0:00:21]} O-O {[%emt 0:00:22]} 9. O-O-O {[%emt 0:00:24]} e5 {[%emt 0:00:35] 9...e5 scores better than 9...a5.} 10. g3 {[%emt 0:00:31][%cal Bg2g3,Bg3g4][%mdl 32]} Nd4 {[%emt 0:00:55]} 11. Kb1 {[%emt 0:02:42]} (11. Nge2 $5 {[%cal Re2d4]}) 11... Re8 {[%emt 0:00:40]} 12. Bg2 {[%emt 0:00:46]} Bg4 {[%emt 0:00:56] Prevents Nf3.} 13. Rf1 {[%emt 0:00:42]} b5 {[%emt 0:01:40][%cal Bb7b5,Bb5b4][%mdl 32]} (13... d5 $5) 14. h3 {[%emt 0:00:47]} Bd7 {[%emt 0:01:20] [#]} 15. g4 $146 {[%emt 0:01:16] Hoping for g5.} ({Predecessor:} 15. Nce2 Nxe2 16. Nxe2 Bc6 17. Qd3 Bg7 18. f5 d5 19. g4 Nxe4 20. Bxe4 dxe4 21. Qg3 {½-½ (33) Perunovic,M (2425)-Heinemann,J (2285) Belgrade 2021}) 15... Bg7 $1 {[%emt 0:01:21]} (15... b4 16. Nce2 $16) 16. f5 {[%emt 0:01:06]} ({Better is} 16. Nce2 $11) 16... Rc8 $1 $15 {[%emt 0:01:11] aiming for ...b4.} (16... b4 17. Nce2 $11) 17. Rc1 {[%emt 0:01:31]} b4 {[%emt 0:02:52]} ({Much worse is} 17... gxf5 $6 18. exf5 d5 19. Nxd5 $11) 18. Nce2 {[%emt 0:00:42]} Nxe2 $2 {[%emt 0:00:53]} ({But not} 18... gxf5 $6 19. gxf5 Nxe2 20. Nxe2 $14) (18... Bc6 $1 $17 {and life is bright.} 19. Nxd4 exd4 20. Qxd4 Qa5) 19. Nxe2 $16 {[%emt 0:00:26]} Bc6 {[%emt 0:00:21]} 20. Ng3 {[%emt 0:00:32]} ({Weaker is} 20. Qxb4 a5 21. Qe1 Bxe4 22. Bxe4 Nxe4 $15) 20... d5 {[%emt 0:00:24]} 21. Qxb4 (21. Rcd1 $16) 21... Bh6 $1 $11 {[%emt 0:03:13]} 22. Rcd1 {[%emt 0:03:34] Threatens to win with exd5.} d4 {[%emt 0:00:27][%mdl 1024] Black has compensation.} 23. Bc1 {[%emt 0:03:05] [#]} (23. fxg6 $15 hxg6 24. Qe1) 23... Bf8 $2 {[%emt 0:01:53]} (23... a5 $1 $17 {[%cal Ra5b4]} 24. Qe1 Bf4) 24. Qd2 {[%emt 0:00:54]} a5 {[%emt 0:00:45]} (24... Qb6 $14) 25. Rhf1 $2 {[%emt 0:00:35]} (25. g5 $16 Nh5 {[#]} 26. fxg6 $1 fxg6 27. Nxh5 gxh5 28. Qe2) 25... Bb5 {[%emt 0:00:40]} 26. Rf3 {[%emt 0:00:33]} Rc6 {[%emt 0:00:51]} 27. Bf1 {[%emt 0:00:26]} Qb6 {[%emt 0:00:37]} (27... Bxf1 $11 {should be considered.} 28. Rdxf1 a4) 28. Bxb5 {[%emt 0:01:33]} Qxb5 {[%emt 0:00:21]} 29. Qd3 {[%emt 0:01:36]} (29. fxg6 $1 $14 fxg6 30. c3) 29... Qb6 $1 $15 {[%emt 0:00:49]} 30. Bb2 {[%emt 0:01:36]} Rec8 {[%emt 0:00:28]} 31. Rc1 {[%emt 0:00:20] Black continues to play with concentration.} (31. Rdf1 $15) 31... Bh6 $17 {[%emt 0:00:26]} 32. c4 $2 {[%emt 0:00:33][%mdl 8192]} (32. Rcf1 $17 {is more resistant.}) 32... Bxc1 $19 {[%emt 0:01:10]} 33. Kxc1 {[%emt 0:00:20]} a4 {[%emt 0:00:22]} 34. Nf1 {[%emt 0:01:09]} axb3 {[%emt 0:00:24]} 35. axb3 {[%emt 0:00:21]} Nd7 {[%emt 0:00:55]} 36. Nd2 {[%emt 0:00:20]} Nc5 {[%emt 0:00:37]} 37. Qf1 {[%emt 0:00:23]} g5 {[%emt 0:00:51]} 38. h4 {[%emt 0:01:20]} (38. Ba3 $142) 38... d3 {[%emt 0:00:23]} 39. Rxd3 {[%emt 0:00:22]} Nxd3+ 40. Qxd3 {[%emt 0:00:20]} Rd6 {[%emt 0:00:50]} 41. Qg3 {[%emt 0:30:24]} Rcd8 {[%emt 0:30:44]} 42. Bc3 {[%emt 0:00:24]} f6 {[%emt 0:00:39] ( -> ...gxh4)} 43. Kc2 {[%emt 0:00:41]} Rd3 {[%emt 0:00:29]} (43... Qa7 $142 44. Qh2 Qa2+ 45. Kc1 Rd3 46. Bb4 Rxb3 47. Nxb3 Qxh2 48. Nd2 gxh4 49. Ba5 Rb8 50. Kc2 h3 51. Bc7 Ra8 52. Kc3 Ra3+ 53. Nb3 Qg3+ 54. Kb4 Qxb3+ 55. Kc5 Qb7 56. Bxe5 fxe5 57. f6 Ra6 58. f7+ Kxf7 59. g5 Qb6+ 60. Kd5 Qd6#) 44. Qe1 {[%emt 0:00:20]} Qa7 {[%emt 0:00:38]} 45. Kb2 {[%emt 0:01:05] [#]} Rxc3 $1 {[%mdl 512]} 46. Kxc3 {[%emt 0:00:21] KQR-KQN} Qd4+ {[%emt 0:01:03]} 47. Kc2 {[%emt 0:00:21]} Qd3+ {[%emt 0:00:21]} 48. Kd1 {[%emt 0:00:26]} Qxb3+ {[%emt 0:00:33]} 49. Ke2 {[%emt 0:00:21]} Qd3+ {[%emt 0:00:22]} 50. Kd1 {[%emt 0:00:21]} Qb3+ {[%emt 0:00:23]} (50... Ra8 $142 51. Kc1 Ra2 52. Qd1 Qc3+ 53. Kb1 Qb2#) 51. Ke2 $1 {[%emt 0:00:23]} Qd3+ {[%emt 0:00:23]} (51... Qc2 $19 52. h5 Rd4) 52. Kd1 $1 {[%emt 0:00:22][%mdl 32768] Weighted Error Value: White=0.86/Black=0.59. An unexpected result.} 1/2-1/2